fUSD/lending_fUSD_20250629
["ID","MTS","AMOUNT","RATE_DAILY","PERIOD"]
[368390854,1751155876072,-1620.05,0.00030136,9]
[368390855,1751155876082,-490.0,0.00030136,9]
[368390856,1751155876312,-490.0,0.00030136,9]
[368390857,1751155876322,-1215.303832,0.00030136,9]
[368390858,1751155876331,-13898.81,0.00030136,9]
[368390859,1751155876340,-490.0,0.00030136,9]
[368390860,1751155876349,-490.0,0.00030136,2]
[368390861,1751155876358,-7531.9,0.00030136,9]
[368390862,1751155876367,-899.410286,0.00030136,7]
[368390863,1751155876378,-728.1,0.00030136,9]
[368390864,1751155876387,-899.410286,0.00030136,7]
[368390865,1751155876396,-587.27,0.00030136,9]
[368390866,1751155876405,-633.56,0.00030136,9]
[368390867,1751155876420,-899.410286,0.00030136,7]
[368390868,1751155876430,-164.51376113,0.00030136,2]
[368390869,1751155876439,-490.0,0.00030136,9]
[368390870,1751155876449,-899.410286,0.00030136,7]
[368390871,1751155876459,-5488.59,0.00030136,9]
[368390872,1751155876468,-899.410286,0.00030136,7]
[368390873,1751155876478,-9132.52,0.00030136,9]
[368390874,1751155876487,-821.09,0.00030136,9]
[368390875,1751155876497,-899.410286,0.00030136,7]
[368390876,1751155876507,-899.410286,0.00030136,7]
[368390877,1751155876517,-899.410286,0.00030136,7]
[368390878,1751155876526,-490.0,0.00030136,9]
[368390879,1751155876536,-899.410286,0.00030136,7]
[368390880,1751155876545,-1946.02,0.00030136,9]
[368390881,1751155876555,-495.59,0.00030136,9]
[368390882,1751155876564,-490.0,0.00030136,9]
[368390883,1751155876575,-1311.4,0.00030136,9]
[368390884,1751155876585,-490.0,0.00030136,2]
[368390885,1751155876595,-490.0,0.00030136,9]
[368390886,1751155876605,-899.410286,0.00030136,7]
[368390887,1751155876615,-899.410286,0.00030136,7]
[368390888,1751155876625,-490.0,0.00030136,9]
[368390889,1751155876636,-899.410286,0.00030136,7]
[368390890,1751155876645,-490.0,0.00030136,9]
[368390891,1751155876656,-899.410286,0.00030136,7]
[368390892,1751155876665,-516.18,0.00030136,9]
[368390893,1751155876675,-1318.19,0.00030136,9]
[368390894,1751155876685,-2413.09,0.00030136,9]
[368390895,1751155876694,-490.0,0.00030136,2]
[368390896,1751155876704,-2649.99,0.00030136,9]
[368390897,1751155876717,-899.410286,0.00030136,7]
[368390898,1751155876726,-899.410286,0.00030136,7]
[368390899,1751155876736,-899.410286,0.00030136,7]
[368390900,1751155876745,-899.410286,0.00030136,7]
[368390901,1751155876755,-490.0,0.00030136,9]
[368390902,1751155876765,-490.0,0.00030136,9]
[368390903,1751155876774,-899.410284,0.00030136,7]
[368390904,1751155876784,-151.76208581,0.00030146,2]
[368390905,1751155876796,-168.0,0.0003015,2]
[368390906,1751155876806,-231.0,0.00030165,2]
[368390907,1751155876816,-1052.53,0.00030172,9]
[368390908,1751155876827,-4961.81465718,0.00030172,2]
[368390909,1751155876839,-500.0,0.00030172,9]
[368390910,1751155876848,-1644.32,0.00030172,9]
[368390911,1751155876859,-5181.31,0.00030172,9]
[368390912,1751155876869,-501.02358634,0.00030173,5]
[368390913,1751155876880,-505.28748252,0.00030173,5]
[368390914,1751155876890,-500.0,0.00030173,5]
[368390915,1751155876900,-341.41174273,0.00030173,5]
[368390916,1751155876911,-500.0,0.00030173,5]
[368390917,1751155876920,-500.51142077,0.00030173,5]
[368390918,1751155876930,-501.18899332,0.00030173,5]
[368390919,1751155876940,-161.98414739,0.00030173,2]
[368390920,1751155876952,-500.0,0.00030173,5]
[368390921,1751155876962,-500.0,0.00030173,5]
[368390922,1751155876973,-500.0,0.00030173,5]
[368390923,1751155876982,-168.87146905,0.00030173,5]
[368390924,1751155876993,-160.59841573,0.00030173,3]
[368390925,1751155877003,-517.10202085,0.00030173,2]
[368390926,1751155877014,-170.96235955,0.00030173,5]
[368390927,1751155877024,-524.17423193,0.00030173,5]
[368390928,1751155877035,-500.0,0.00030173,5]
[368390929,1751155877045,-505.67646133,0.00030173,5]
[368390930,1751155877055,-167.57297574,0.00030173,5]
[368390931,1751155877065,-501.82104504,0.00030173,5]
[368390932,1751155877075,-500.0,0.00030173,5]
[368390933,1751155877084,-166.72360223,0.00030173,5]
[368390934,1751155877094,-500.0,0.00030173,5]
[368390935,1751155877104,-500.0,0.00030173,5]
[368390936,1751155877115,-500.0,0.00030173,2]
[368390937,1751155877124,-500.0,0.00030173,5]
[368390938,1751155877134,-500.0,0.00030173,3]
[368390939,1751155877144,-502.39330789,0.00030173,5]
[368390940,1751155877155,-500.0,0.00030173,5]
[368390941,1751155877164,-157.86932756,0.00030173,5]
[368390942,1751155877174,-500.0,0.00030173,5]
[368390943,1751155877184,-500.0,0.00030173,5]
[368390944,1751155877193,-209.68875445,0.00030173,5]
[368390945,1751155877204,-500.0,0.00030173,5]
[368390946,1751155877213,-151.0,0.00030173,7]
[368390947,1751155877223,-151.0,0.00030173,7]
[368390948,1751155877233,-151.0,0.00030173,7]
[368390949,1751155877243,-151.0,0.00030173,7]
[368390950,1751155877252,-243.46292303,0.00030193,15]
[368390951,1751155877262,-500.0,0.000302,2]
[368390952,1751155877272,-150.0,0.000302,2]
[368390953,1751155877282,-150.0,0.000302,2]
[368390954,1751155877292,-500.0,0.000302,2]
[368390955,1751155877301,-500.0,0.000302,2]
[368390956,1751155877310,-449.0,0.000302,2]
[368390957,1751155877320,-500.0,0.000302,2]
[368390958,1751155877331,-200.0,0.000302,2]
[368390959,1751155877340,-150.0,0.000302,2]
[368390960,1751155877351,-150.0,0.000302,2]
[368390961,1751155877361,-163.88071417,0.000302,2]
[368390962,1751155877371,-150.0,0.000302,2]
[368390963,1751155877380,-150.0,0.000302,2]
[368390964,1751155877391,-500.0,0.000302,2]
[368390965,1751155877401,-150.0,0.000302,2]
[368390966,1751155877412,-412.82,0.000302,2]
[368390967,1751155877422,-352.15015453,0.00030208,2]
[368390968,1751155877431,-255.0638859,0.0003026,2]
[368390969,1751155877440,-500.0,0.00030274,2]
[368390970,1751155877449,-284.0,0.000303,2]
[368390971,1751155877459,-4961.81465718,0.0003031,2]
[368390972,1751155877468,-215.80662962,0.0003031,2]
[368390973,1751155877477,-158.71916213,0.0003031,2]
[368390974,1751155877487,-4009.07687811,0.0003031,2]
[368390975,1751155877497,-185.06789235,0.0003031,2]
[368390976,1751155877508,-865.42866828,0.0003031,2]
[368390977,1751155877517,-153.9,0.0003031,2]
[368390978,1751155877526,-155.068844,0.00030359,7]
[368390979,1751155877536,-447.345723,0.00030359,7]
[368390980,1751155877546,-447.345718,0.00030359,7]
[368390981,1751155877555,-1078.98,0.00030373,14]
[368390982,1751155877564,-4772.83,0.00030373,14]
[368390983,1751155877574,-1842.8,0.00030373,14]
[368390984,1751155877584,-190.0,0.00030385,2]
[368390985,1751155877593,-151.76208581,0.00030392,2]
[368390986,1751155877603,-500.0,0.00030408,9]
[368390987,1751155877612,-151.0,0.00030408,7]
[368390988,1751155877622,-299.122273,0.00030408,7]
[368390989,1751155877633,-299.122273,0.00030408,7]
[368390990,1751155877643,-171.470751,0.00030408,7]
[368390991,1751155877652,-171.470751,0.00030408,7]
[368390992,1751155877662,-543.033394,0.00030408,7]
[368390993,1751155877671,-543.033394,0.00030408,7]
[368390994,1751155877680,-524.78,0.00030408,9]
[368390995,1751155877690,-2282.19,0.00030408,9]
[368390996,1751155877699,-2282.19,0.00030408,9]
[368390997,1751155877708,-2282.19,0.00030408,9]
[368390998,1751155877718,-984.71,0.00030408,9]
[368390999,1751155877730,-877.925057,0.00030409,7]
[368391000,1751155877739,-877.925057,0.00030409,7]
[368391001,1751155877749,-151.0,0.00030409,7]
[368391002,1751155877758,-471.769015,0.00030409,7]
[368391003,1751155877768,-471.769015,0.00030409,7]
[368391004,1751155877778,-151.0,0.00030409,7]
[368391005,1751155877787,-151.0,0.00030409,7]
[368391006,1751155877796,-165.75309,0.00030409,7]
[368391007,1751155877805,-165.75309,0.00030409,7]
[368391008,1751155877815,-165.75309,0.00030409,7]
[368391009,1751155877825,-165.75309,0.00030409,7]
[368391010,1751155877834,-151.0,0.00030409,7]
[368391011,1751155877845,-173.501823,0.00030409,7]
[368391012,1751155877861,-278.05497,0.00030409,7]
[368391013,1751155877883,-278.05497,0.00030409,7]
[368391014,1751155877902,-278.05497,0.00030409,7]
[368391015,1751155877924,-278.05497,0.00030409,7]
[368391016,1751155877939,-500.0,0.00030409,9]
[368391017,1751155877959,-500.0,0.00030409,9]
[368391018,1751155877979,-500.0,0.00030409,9]
[368391019,1751155878001,-516.82633782,0.00030409,9]
[368391020,1751155878020,-321.084865,0.00030409,7]
[368391021,1751155878039,-321.084865,0.00030409,7]
[368391022,1751155878061,-151.0,0.00030409,7]
[368391023,1751155878077,-1052.53,0.00030409,9]
[368391024,1751155878097,-1052.53,0.00030409,9]
[368391025,1751155878110,-1052.53,0.00030409,9]
[368391026,1751155878131,-1052.53,0.00030409,9]
[368391027,1751155878148,-1052.53,0.00030409,9]
[368391028,1751155878164,-1052.53,0.00030409,9]
[368391029,1751155878181,-1052.53,0.00030409,9]
[368391030,1751155878199,-1052.53,0.00030409,9]
[368391031,1751155878217,-1052.53,0.00030409,9]
[368391032,1751155878234,-1052.53,0.00030409,9]
[368391033,1751155878251,-524.78,0.00030409,9]
[368391034,1751155878268,-524.78,0.00030409,9]
[368391035,1751155878285,-524.78,0.00030409,9]
[368391036,1751155878301,-524.78,0.00030409,9]
[368391037,1751155878318,-524.78,0.00030409,9]
[368391038,1751155878337,-524.78,0.00030409,9]
[368391039,1751155878353,-524.78,0.00030409,9]
[368391040,1751155878369,-524.78,0.00030409,9]
[368391041,1751155878387,-524.78,0.00030409,9]
[368391042,1751155878404,-524.97782939,0.00030409,9]
[368391043,1751155878420,-500.0,0.00030409,9]
[368391044,1751155878437,-500.0,0.00030409,9]
[368391045,1751155878454,-500.0,0.00030409,9]
[368391046,1751155878469,-614.53755233,0.00030409,9]
[368391047,1751155878485,-1998.85,0.00030409,9]
[368391048,1751155878501,-1998.85,0.00030409,9]
[368391049,1751155878517,-1998.85,0.00030409,9]
[368391050,1751155878533,-1998.85,0.00030409,9]
[368391051,1751155878550,-1998.85,0.00030409,9]
[368391052,1751155878566,-1998.85,0.00030409,9]
[368391053,1751155878581,-1998.85,0.00030409,9]
[368391054,1751155878597,-1998.85,0.00030409,9]
[368391055,1751155878614,-1998.85,0.00030409,9]
[368391056,1751155878631,-1999.07542134,0.00030409,9]
[368391057,1751155878648,-2282.19,0.00030409,9]
[368391058,1751155878663,-2282.19,0.00030409,9]
[368391059,1751155878679,-2282.19,0.00030409,9]
[368391060,1751155878694,-2282.19,0.00030409,9]
[368391061,1751155878710,-2282.19,0.00030409,9]
[368391062,1751155878728,-2282.19,0.00030409,9]
[368391063,1751155878745,-2282.19,0.00030409,9]
[368391064,1751155878760,-2282.40026456,0.00030409,9]
[368391065,1751155878785,-1644.32,0.00030409,9]
[368391066,1751155878802,-1644.32,0.00030409,9]
[368391067,1751155878819,-1644.32,0.00030409,9]
[368391068,1751155878835,-1644.32,0.00030409,9]
[368391069,1751155878851,-1644.32,0.00030409,9]
[368391070,1751155878867,-1644.32,0.00030409,9]
[368391071,1751155878883,-1644.32,0.00030409,9]
[368391072,1751155878899,-1644.32,0.00030409,9]
[368391073,1751155878915,-1644.32,0.00030409,9]
[368391074,1751155878931,-1644.37630932,0.00030409,9]
[368391075,1751155878947,-5181.31,0.00030409,9]
[368391076,1751155878962,-5181.31,0.00030409,9]
[368391077,1751155878978,-5181.31,0.00030409,9]
[368391078,1751155878994,-5181.31,0.00030409,9]
[368391079,1751155879010,-5181.31,0.00030409,9]
[368391080,1751155879025,-5181.31,0.00030409,9]
[368391081,1751155879041,-5181.31,0.00030409,9]
[368391082,1751155879056,-5181.31,0.00030409,9]
[368391083,1751155879073,-5181.31,0.00030409,9]
[368391084,1751155879088,-5181.53965917,0.00030409,9]
[368391085,1751155879104,-984.71,0.00030409,9]
[368391086,1751155879119,-984.71,0.00030409,9]
[368391087,1751155879135,-984.71,0.00030409,9]
[368391088,1751155879150,-984.71,0.00030409,9]
[368391089,1751155879167,-984.71,0.00030409,9]
[368391090,1751155879182,-984.71,0.00030409,9]
[368391091,1751155879199,-984.71,0.00030409,9]
[368391092,1751155879215,-984.71,0.00030409,9]
[368391093,1751155879231,-984.71,0.00030409,9]
[368391094,1751155879247,-984.84240244,0.00030409,9]
[368391095,1751155879263,-150.0,0.00030409,3]
[368391096,1751155879279,-150.0,0.00030409,3]
[368391097,1751155879295,-202.147569,0.0003041,7]
[368391098,1751155879309,-151.0,0.0003041,2]
[368391099,1751155879325,-151.0,0.0003041,7]
[368391100,1751155879340,-151.0,0.0003041,7]
[368391101,1751155879357,-151.0,0.0003041,7]
[368391102,1751155879371,-151.0,0.0003041,7]
[368391103,1751155879386,-151.0,0.0003041,7]
[368391104,1751155879402,-276.26818,0.0003041,7]
[368391105,1751155879416,-276.26818,0.0003041,7]
[368391106,1751155879432,-151.0,0.0003041,7]
[368391107,1751155879446,-151.0,0.0003041,7]
[368391108,1751155879462,-151.0,0.0003041,7]
[368391109,1751155879477,-151.0,0.0003041,7]
[368391110,1751155879493,-257.845576,0.0003041,7]
[368391111,1751155879509,-257.845576,0.0003041,7]
[368391112,1751155879525,-257.845576,0.0003041,7]
[368391113,1751155879541,-257.845576,0.0003041,7]
[368391114,1751155879557,-292.287607,0.0003041,7]
[368391115,1751155879572,-292.287607,0.0003041,7]
[368391116,1751155879587,-292.287607,0.0003041,7]
[368391117,1751155879602,-292.287607,0.0003041,7]
[368391118,1751155879617,-151.0,0.0003041,7]
[368391119,1751155879632,-151.0,0.0003041,7]
[368391120,1751155879646,-337.335242,0.0003041,7]
[368391121,1751155879661,-337.335242,0.0003041,7]
[368391122,1751155879677,-337.335242,0.0003041,7]
[368391123,1751155879691,-337.335242,0.0003041,7]
[368391124,1751155879707,-151.0,0.0003041,7]
[368391125,1751155879722,-151.0,0.0003041,7]
[368391126,1751155879737,-151.0,0.0003041,7]
[368391127,1751155879751,-151.0,0.0003041,7]
[368391128,1751155879766,-318.967983,0.0003041,7]
[368391129,1751155879781,-318.967983,0.0003041,7]
[368391130,1751155879796,-318.967983,0.0003041,7]
[368391131,1751155879810,-318.967983,0.0003041,7]
[368391132,1751155879826,-151.0,0.0003041,7]
[368391133,1751155879841,-151.0,0.0003041,7]
[368391134,1751155879856,-151.0,0.0003041,7]
[368391135,1751155879870,-221.232072,0.0003041,7]
[368391136,1751155879885,-151.0,0.0003041,7]
[368391137,1751155879901,-151.0,0.0003041,7]
[368391138,1751155879915,-195.85511,0.0003041,7]
[368391139,1751155879930,-154.016026,0.0003041,7]
[368391140,1751155879945,-154.016026,0.0003041,7]
[368391141,1751155879960,-154.016026,0.0003041,7]
[368391142,1751155879976,-154.016026,0.0003041,7]
[368391143,1751155879991,-151.0,0.0003041,7]
[368391144,1751155880006,-155.45993,0.0003041,7]
[368391145,1751155880021,-153.708364,0.0003041,7]
[368391146,1751155880035,-395.761557,0.0003041,9]
[368391147,1751155880051,-153.415043,0.0003041,7]
[368391148,1751155880066,-338.899069,0.0003041,7]
[368391149,1751155880081,-338.899069,0.0003041,7]
[368391150,1751155880095,-338.899069,0.0003041,7]
[368391151,1751155880111,-338.899069,0.0003041,7]
[368391152,1751155880126,-151.0,0.0003041,7]
[368391153,1751155880141,-290.120618,0.0003041,7]
[368391154,1751155880156,-151.273585,0.0003041,9]
[368391155,1751155880170,-480.632055,0.0003041,7]
[368391156,1751155880185,-480.632055,0.0003041,7]
[368391157,1751155880200,-480.632055,0.0003041,7]
[368391158,1751155880213,-480.632055,0.0003041,7]
[368391159,1751155880227,-151.0,0.0003041,7]
[368391160,1751155880241,-490.0,0.0003041,9]
[368391161,1751155880256,-490.0,0.0003041,9]
[368391162,1751155880270,-151.85221,0.0003041,7]
[368391163,1751155880285,-490.0,0.0003041,9]
[368391164,1751155880299,-490.0,0.0003041,9]
[368391165,1751155880314,-490.0,0.0003041,9]
[368391166,1751155880326,-490.0,0.0003041,9]
[368391167,1751155880336,-490.0,0.0003041,9]
[368391168,1751155880727,-490.0,0.0003041,9]
[368391169,1751155880749,-490.0,0.0003041,9]
[368391170,1751155880758,-490.0,0.0003041,9]
[368391171,1751155880768,-490.0,0.0003041,9]
[368391172,1751155880778,-151.0,0.0003041,7]
[368391173,1751155880787,-301.420404,0.0003041,7]
[368391174,1751155880796,-798.19,0.0003041,9]
[368391175,1751155880807,-490.0,0.0003041,9]
[368391176,1751155880816,-393.818774,0.0003041,7]
[368391177,1751155880825,-393.818774,0.0003041,7]
[368391178,1751155880834,-393.818774,0.0003041,7]
[368391179,1751155880843,-393.818774,0.0003041,7]
[368391180,1751155880853,-172.149393,0.0003041,7]
[368391181,1751155880862,-172.149396,0.0003041,7]
[368391182,1751155880871,-151.0,0.0003041,7]
[368391183,1751155880882,-151.0,0.0003041,7]
[368391184,1751155880891,-151.0,0.0003041,7]
[368391185,1751155880902,-298.686225,0.0003041,7]
[368391186,1751155880912,-151.0,0.0003041,7]
[368391187,1751155880921,-151.0,0.0003041,7]
[368391188,1751155880930,-490.0,0.0003041,9]
[368391189,1751155880940,-490.0,0.0003041,9]
[368391190,1751155880949,-301.243078,0.0003041,7]
[368391191,1751155880958,-301.243078,0.0003041,7]
[368391192,1751155880968,-301.243078,0.0003041,7]
[368391193,1751155880977,-301.243078,0.0003041,7]
[368391194,1751155880986,-490.0,0.0003041,9]
[368391195,1751155880996,-151.0,0.0003041,7]
[368391196,1751155881005,-151.0,0.0003041,7]
[368391197,1751155881014,-151.0,0.0003041,7]
[368391198,1751155881024,-238.999228,0.0003041,7]
[368391199,1751155881033,-490.0,0.0003041,9]
[368391200,1751155881043,-490.0,0.0003041,9]
[368391201,1751155881053,-490.0,0.0003041,9]
[368391202,1751155881063,-490.0,0.0003041,9]
[368391203,1751155881073,-165.981241,0.0003041,7]
[368391204,1751155881082,-165.981241,0.0003041,7]
[368391205,1751155881091,-165.981241,0.0003041,7]
[368391206,1751155881101,-165.981247,0.0003041,7]
[368391207,1751155881110,-477.96715756,0.0003041,9]
[368391208,1751155881120,-490.0,0.0003041,9]
[368391209,1751155881130,-490.0,0.0003041,9]
[368391210,1751155881139,-490.0,0.0003041,9]
[368391211,1751155881148,-490.0,0.0003041,9]
[368391212,1751155881157,-510.04,0.0003041,9]
[368391213,1751155881167,-877.925062,0.0003041,7]
[368391214,1751155881175,-490.0,0.0003041,9]
[368391215,1751155881184,-490.0,0.0003041,9]
[368391216,1751155881194,-151.0,0.0003041,7]
[368391217,1751155881203,-151.0,0.0003041,7]
[368391218,1751155881212,-151.0,0.0003041,7]
[368391219,1751155881221,-230.019122,0.0003041,7]
[368391220,1751155881230,-490.0,0.0003041,9]
[368391221,1751155881239,-639.53358782,0.0003041,9]
[368391222,1751155881248,-490.0,0.0003041,9]
[368391223,1751155881257,-490.0,0.0003041,9]
[368391224,1751155881266,-471.769015,0.0003041,7]
[368391225,1751155881276,-471.769015,0.0003041,7]
[368391226,1751155881285,-471.769015,0.0003041,7]
[368391227,1751155881295,-471.76901878,0.0003041,7]
[368391228,1751155881304,-490.0,0.0003041,9]
[368391229,1751155881313,-616.41,0.0003041,9]
[368391230,1751155881322,-151.0,0.0003041,7]
[368391231,1751155881331,-261.344857,0.0003041,7]
[368391232,1751155881341,-490.0,0.0003041,9]
[368391233,1751155881351,-236.984285,0.0003041,7]
[368391234,1751155881361,-236.984285,0.0003041,7]
[368391235,1751155881370,-236.984285,0.0003041,7]
[368391236,1751155881380,-490.0,0.0003041,9]
[368391237,1751155881389,-236.984285,0.0003041,7]
[368391238,1751155881398,-236.984285,0.0003041,7]
[368391239,1751155881407,-236.984287,0.0003041,7]
[368391240,1751155881416,-158.965893,0.0003041,7]
[368391241,1751155881426,-542.54,0.0003041,9]
[368391242,1751155881435,-490.0,0.0003041,9]
[368391243,1751155881446,-490.0,0.0003041,9]
[368391244,1751155881455,-490.0,0.0003041,9]
[368391245,1751155881464,-242.911034,0.0003041,7]
[368391246,1751155881473,-242.911034,0.0003041,7]
[368391247,1751155881483,-242.911034,0.0003041,7]
[368391248,1751155881491,-242.911034,0.0003041,7]
[368391249,1751155881501,-242.911034,0.0003041,7]
[368391250,1751155881510,-242.911043,0.0003041,7]
[368391251,1751155881519,-165.75309,0.0003041,7]
[368391252,1751155881529,-151.0,0.0003041,7]
[368391253,1751155881538,-151.0,0.0003041,7]
[368391254,1751155881547,-165.753081,0.0003041,7]
[368391255,1751155881557,-151.0,0.0003041,7]
[368391256,1751155881566,-1324.03,0.0003041,9]
[368391257,1751155881575,-490.0,0.0003041,9]
[368391258,1751155881584,-971.53,0.0003041,9]
[368391259,1751155881594,-490.0,0.0003041,9]
[368391260,1751155881603,-490.0,0.0003041,9]
[368391261,1751155881612,-490.0,0.0003041,9]
[368391262,1751155881621,-490.0,0.0003041,9]
[368391263,1751155881630,-715.7,0.0003041,9]
[368391264,1751155881640,-490.0,0.0003041,9]
[368391265,1751155881649,-490.0,0.0003041,9]
[368391266,1751155881659,-524.58,0.0003041,9]
[368391267,1751155881668,-490.0,0.0003041,9]
[368391268,1751155881677,-490.0,0.0003041,9]
[368391269,1751155881686,-151.0,0.0003041,7]
[368391270,1751155881695,-278.05497,0.0003041,7]
[368391271,1751155881704,-278.054968,0.0003041,7]
[368391272,1751155881715,-490.0,0.0003041,9]
[368391273,1751155881724,-343.14653517,0.0003041,9]
[368391274,1751155881738,-688.01,0.0003041,9]
[368391275,1751155881748,-490.0,0.0003041,9]
[368391276,1751155881758,-490.0,0.0003041,9]
[368391277,1751155881768,-579.31284776,0.0003041,9]
[368391278,1751155881777,-490.0,0.0003041,9]
[368391279,1751155881787,-490.0,0.0003041,9]
[368391280,1751155881796,-490.0,0.0003041,9]
[368391281,1751155881806,-490.0,0.0003041,9]
[368391282,1751155881815,-490.0,0.0003041,9]
[368391283,1751155881825,-1000.0,0.0003041,9]
[368391284,1751155881835,-490.0,0.0003041,9]
[368391285,1751155881844,-432.37212279,0.0003041,9]
[368391286,1751155881854,-490.0,0.0003041,9]
[368391287,1751155881864,-490.0,0.0003041,9]
[368391288,1751155881873,-490.0,0.0003041,9]
[368391289,1751155881883,-490.0,0.0003041,9]
[368391290,1751155881892,-490.0,0.0003041,9]
[368391291,1751155881902,-253.95426493,0.0003041,9]
[368391292,1751155881911,-490.0,0.0003041,9]
[368391293,1751155881920,-490.0,0.0003041,9]
[368391294,1751155881930,-490.0,0.0003041,9]
[368391295,1751155881940,-930.83,0.0003041,9]
[368391296,1751155881949,-490.0,0.0003041,9]
[368391297,1751155881959,-490.0,0.0003041,9]
[368391298,1751155881969,-617.35028953,0.0003041,9]
[368391299,1751155881979,-645.75,0.0003041,9]
[368391300,1751155881988,-401.4114581,0.0003041,9]
[368391301,1751155881998,-492.76469664,0.0003041,9]
[368391302,1751155882007,-490.0,0.0003041,9]
[368391303,1751155882017,-570.053694,0.0003041,7]
[368391304,1751155882027,-570.053694,0.0003041,7]
[368391305,1751155882037,-570.053694,0.0003041,7]
[368391306,1751155882046,-570.053698,0.0003041,7]
[368391307,1751155882056,-490.0,0.0003041,9]
[368391308,1751155882065,-490.0,0.0003041,9]
[368391309,1751155882074,-490.0,0.0003041,9]
[368391310,1751155882084,-573.19,0.0003041,9]
[368391311,1751155882094,-490.0,0.0003041,9]
[368391312,1751155882103,-490.0,0.0003041,9]
[368391313,1751155882113,-490.0,0.0003041,9]
[368391314,1751155882122,-572.08,0.0003041,9]
[368391315,1751155882132,-490.0,0.0003041,9]
[368391316,1751155882141,-490.0,0.0003041,9]
[368391317,1751155882151,-490.0,0.0003041,9]
[368391318,1751155882160,-490.0,0.0003041,9]
[368391319,1751155882172,-151.0,0.0003041,7]
[368391320,1751155882181,-490.0,0.0003041,9]
[368391321,1751155882191,-412.35753251,0.0003041,9]
[368391322,1751155882202,-490.0,0.0003041,9]
[368391323,1751155882211,-490.0,0.0003041,9]
[368391324,1751155882220,-490.0,0.0003041,9]
[368391325,1751155882229,-490.0,0.0003041,9]
[368391326,1751155882238,-490.0,0.0003041,9]
[368391327,1751155882247,-490.0,0.0003041,9]
[368391328,1751155882257,-302.64870849,0.0003041,9]
[368391329,1751155882266,-490.0,0.0003041,9]
[368391330,1751155882276,-490.0,0.0003041,9]
[368391331,1751155882285,-490.0,0.0003041,9]
[368391332,1751155882294,-490.0,0.0003041,9]
[368391333,1751155882303,-490.0,0.0003041,9]
[368391334,1751155882312,-1089.246381,0.0003041,7]
[368391335,1751155882322,-1089.246378,0.0003041,7]
[368391336,1751155882331,-1019.98,0.0003041,9]
[368391337,1751155882340,-490.0,0.0003041,9]
[368391338,1751155882349,-495.81855162,0.0003041,9]
[368391339,1751155882359,-490.0,0.0003041,9]
[368391340,1751155882369,-894.46,0.0003041,9]
[368391341,1751155882378,-490.0,0.0003041,9]
[368391342,1751155882387,-490.0,0.0003041,9]
[368391343,1751155882396,-490.0,0.0003041,9]
[368391344,1751155882405,-151.0,0.0003041,7]
[368391345,1751155882414,-151.0,0.0003041,7]
[368391346,1751155882423,-490.0,0.0003041,9]
[368391347,1751155882432,-490.0,0.0003041,9]
[368391348,1751155882442,-1638.11,0.0003041,9]
[368391349,1751155882451,-548.44168593,0.0003041,9]
[368391350,1751155882461,-2480.814601,0.0003041,9]
[368391351,1751155882471,-493.14621426,0.0003041,9]
[368391352,1751155882481,-818.03,0.0003041,9]
[368391353,1751155882490,-490.0,0.0003041,9]